Cogmind - Beta 10.2 @@@ ROGUE MODE // 2021.11.10 @ 03:04:50 Player: Geraldon Result: Destroyed by G-73 Enforcer with Phase Gun Performance ------------- Evolutions (9) 4500 Regions Visited (31) 6200 Robots Destroyed (177) 885 Value Destroyed (5837) 5837 Prototype IDs (111) 2220 Alien Tech Used (2) 400 Bonus (16070) 16070 TOTAL SCORE: 36112 Bonus ------- High Alert Combat Kills 710 Follower Combat Kills 60 Entered Garrisons 400 Used RIF Installer 500 Aligned with FarCom 300 Met Data Miner 300 Met Zhirov 300 Met Warlord at Base 500 MAIN.C Attacked Warlord 500 Destroyed MAIN.C Guards 500 Met MAIN.C 5000 Destroyed MAIN.C Shell 5000 Met Warlord at Command 2000 Cogmind --------- Core Integrity 0/1600 Matter 214/300 Energy 98/100 System Corruption 4% Temperature Cool (0) Movement Core (50) Location -1/Command Parts ------- > --- POWER (2) -------- (None) > --- PROPULSION (6) --- (None) > --- UTILITY (13) ----- (None) > --- WEAPON (4) ------- (None) > --- INVENTORY (4) ---- Experimental Energy Well (201) Improved Matter Neutralizer Enhanced Nova Cannon Peak State ------------ > --- POWER ------------ Light Quantum Reactor Light Quantum Reactor > --- PROPULSION ------- Advanced Heavy Siege Treads Advanced Heavy Siege Treads Antigrav Array > --- UTILITY ---------- Advanced Cooling System Experimental Energy Well Experimental Terrain Scanner Experimental Terrain Scan Processor Improved Melee Analysis Suite Advanced Phase Shifter Layered Medium Armor Plating Layered Medium Armor Plating Improved Focal Shield Improved Shield Generator Advanced System Shield Advanced System Shield Advanced System Shield > --- WEAPON ----------- Improved Matter Neutralizer KE Penetrator Light Antimatter Cannon Compact Mass Driver > --- INVENTORY -------- Improved Matter Compressor Layered Heavy Armor Plating Transdimensional Reconstructor [Rating: 183] Favorites ----------- Power Micro Fission Core Engine Heavy Ion Engine Power Core Micro Fission Core Reactor Quantum Reactor Propulsion Improved VTOL Module Treads Light Treads Hover Unit Improved Antigrav System Flight Unit Improved VTOL Module Utility Hacking Suite Device Advanced Cooling System Storage Large Storage Unit Processor Advanced Targeting Computer Hackware Hacking Suite Protection Layered Heavy Armor Plating Weapon Heavy Assault Rifle Energy Gun EM Pulse Gun Energy Cannon Improved Matter Neutralizer Ballistic Gun Heavy Assault Rifle Ballistic Cannon Light Antimatter Cannon Launcher Mini Grenade Launcher Special Weapon Plasma Cutter Slashing Weapon Power Sword Special Melee Weapon Datajack Build | -11 -10 -10 -9 -9 -9 -8 -8 -7 -7 -7 -7 -6 -6 -5 -5 -5 -5 -4 -4 -4 -4 -4 -3 -3 -3 -3 -3 -3 -2 -1 -1 ------- Run | Scr Mat Min Mat Min Exi Min Mat Fac Low Low Dat Pro Fac Fac Upp Upp Zhi Pro Fac Upp Upp War Pro Res Gar Res Gar Res Res Acc Com Slots Evolved 18 | . . . 2 . . . 2 2 . . . . 2 2 . . . . 2 . . . . 2 . . . . 2 2 . Power 1 | . . . . . . . . . . . . . . . . . . . . . . . . 1 . . . . . . . Propulsion 4 | . . . 1 . . . . . . . . . . 1 . . . . 1 . . . . . . . . . . 1 . Utility 11 | . . . 1 . . . 2 2 . . . . 1 1 . . . . 1 . . . . 1 . . . . 1 1 . Weapon 2 | . . . . . . . . . . . . . 1 . . . . . . . . . . . . . . . 1 . . Parts Attached 207 | 8 3 4 32 . 3 1 28 13 4 . 1 . 12 11 . . 8 . 4 . . 6 1 5 2 1 . 1 6 8 45 Power 24 | 1 . . 4 . . . 4 1 . . . . 3 1 . . 2 . . . . 1 . 1 . 1 . . 1 . 4 Engine 6 | 1 . . 4 . . . 1 . . . . . . . . . . . . . . . . . . . . . . . . Core 11 | . . . . . . . 3 1 . . . . 3 1 . . 1 . . . . 1 . 1 . . . . . . . Reactor 7 | . . . . . . . . . . . . . . . . . 1 . . . . . . . . 1 . . 1 . 4 Propulsion 45 | 2 . . 12 . . . 10 3 . . . . 3 4 . . . . 1 . . . . . . . . . 1 . 9 Treads 30 | 2 . . 12 . . . 10 . . . . . . . . . . . . . . . . . . . . . . . 6 Leg . | . . . . . . . . . . . . . . . . . . . . . . . . . . . . . . . . Wheel . | . . . . . . . . . . . . . . . . . . . . . . . . . . . . . . . . Hover 3 | . . . . . . . . . . . . . . . . . . . . . . . . . . . . . . . 3 Flight 12 | . . . . . . . . 3 . . . . 3 4 . . . . 1 . . . . . . . . . 1 . . Utility 82 | 2 1 1 4 . . . 8 7 2 . 1 . 3 4 . . 6 . 2 . . 5 1 2 1 . . 1 2 6 23 Device 29 | 1 . . 1 . . . 4 2 1 . . . . 1 . . 2 . . . . 2 1 1 . . . . . 2 11 Storage 7 | 1 1 . 2 . . . . . . . . . . . . . . . . . . . . . . . . . . 1 2 Processor 5 | . . . . . . . . . . . . . . . . . . . . . . 1 . . . . . . . 1 3 Hackware 21 | . . . . . . . 1 5 . . . . 3 1 . . 2 . 2 . . . . 1 1 . . 1 2 2 . Protection 20 | . . 1 1 . . . 3 . 1 . 1 . . 2 . . 2 . . . . 2 . . . . . . . . 7 Artifact . | . . . . . . . . . . . . . . . . . . . . . . . . . . . . . . . . Weapon 56 | 3 2 3 12 . 3 1 6 2 2 . . . 3 2 . . . . 1 . . . . 2 1 . . . 2 2 9 Energy Gun 7 | 2 2 . . . . 1 . . . . . . . . . . . . . . . . . . . . . . 1 . 1 Energy Cannon 3 | . . . . . . . . . . . . . . . . . . . . . . . . . . . . . . . 3 Ballistic Gun 18 | 1 . 2 7 . 2 . 4 . . . . . . . . . . . . . . . . . . . . . . . 2 Ballistic Cannon 5 | . . . . . . . 1 . . . . . . . . . . . . . . . . 1 . . . . . 1 2 Launcher 12 | . . 1 4 . . . 1 . 2 . . . 1 1 . . . . . . . . . 1 . . . . . 1 . Special Weapon 1 | . . . . . . . . . . . . . . . . . . . . . . . . . . . . . 1 . . Impact Weapon . | . . . . . . . . . . . . . . . . . . . . . . . . . . . . . . . . Slashing Weapon 3 | . . . . . . . . 1 . . . . 1 1 . . . . . . . . . . . . . . . . . Piercing Weapon . | . . . . . . . . . . . . . . . . . . . . . . . . . . . . . . . . Special Melee Weapon 7 | . . . 1 . 1 . . 1 . . . . 1 . . . . . 1 . . . . . 1 . . . . . 1 Unidentified Prototypes 16 | . . . 1 . . . 1 . . . . . . . . . 4 . . . . 3 . 1 . . . . 2 1 3 Parts Lost 62 | . 3 2 8 . . 1 8 1 . 2 . . 1 1 . . . . . . . 1 . 5 1 . 1 . 1 5 21 Power 8 | . . . 2 . . . 2 . . . . . . . . . . . . . . . . 1 . . . . . 1 2 Propulsion 9 | . . . 1 . . . 2 . . . . . . 1 . . . . . . . . . . . . . . . . 5 Utility 25 | . 1 . 2 . . . 3 . . 1 . . 1 . . . . . . . . 1 . 2 1 . 1 . . 4 8 Weapon 20 | . 2 2 3 . . 1 1 1 . 1 . . . . . . . . . . . . . 2 . . . . 1 . 6 Highest Loss Streak 17 | . 2 2 3 . . 1 3 1 . 1 . . 1 1 . . . . . . . 1 . 4 5 . 1 . 1 3 17 Average Slot Usage (%) 93 | . 96 93 98 100 100 99 95 97 100 95 92 92 89 97 100 100 99 100 98 100 100 99 100 93 93 93 94 91 86 85 83 Engine 4 | . 14 14 10 11 11 11 3 . . . . . . . . . . . . . . . . 2 . . . . . . . Core 2 | . . . . . . . 5 7 7 7 7 7 5 4 5 5 5 5 5 5 5 5 5 3 4 4 4 4 4 3 . Reactor 1 | . . . . . . . . . . . . . . . . . . . . . . . . . . 3 4 4 4 3 6 Treads 17 | . 28 28 32 33 33 33 26 1 . . . . . . . . . . . . . . . . . . . . . . 12 Flight 7 | . . . . . . . . 21 23 23 23 23 18 21 23 23 23 23 25 26 26 26 26 23 23 23 23 23 21 20 1 Device 7 | . 10 . 3 11 11 11 11 7 5 3 . . . . . . . . . . . . 5 3 . . . . . 2 18 Storage 10 | . 14 14 21 22 22 22 18 1 . . . . . . . . . . . . . . . . . . . . . 3 4 Processor 1 | . . . . . . . . . . . . . . . . . . . . . . . . . . . . . . 1 6 Hackware 16 | . . . . . . . 1 42 46 46 46 46 46 47 47 47 46 47 46 47 47 47 42 42 45 42 41 39 41 39 7 Protection 6 | . . 9 7 . . . 10 . 1 . 7 7 6 4 5 5 5 5 5 5 5 4 5 4 4 4 4 4 4 . 8 Energy Gun 1 | . 17 9 . . . 1 1 . . . . . . . . . . . . . . . . . . . . . . . . Energy Cannon 1 | . . . . . . . . . . . . . . . . . . . . . . . . . . . . . . . 5 Ballistic Gun 8 | . 10 15 20 11 1 19 14 . . . . . . . . . . . . . . . . . . . . . . . 3 Ballistic Cannon 1 | . . . . . . . 1 . . . . . . . . . . . . . . . . . 4 4 4 4 4 5 5 Launcher 2 | . . 1 1 11 10 . 1 . 7 7 . . 3 4 5 5 5 5 5 5 5 5 5 3 . . . . . . . Slashing Weapon 1 | . . . . . . . . 6 7 7 7 7 6 4 5 5 5 5 5 5 5 5 5 4 4 4 4 4 1 . . Special Melee Weapon 1 | . . . . . 10 . . 6 . . . . . 5 5 5 5 5 5 5 5 5 5 . 4 4 4 4 4 4 . Naked Turns 1 | . . . . . . . . . . . . . . . . . . . . . . . . . . . . . . . 1 Heaviest Build 149 | 13 25 27 65 64 63 63 77 62 17 16 16 16 18 18 11 11 11 11 11 11 11 11 19 26 16 30 30 30 31 36 149 Greatest Support 216 | 40 40 40 63 63 63 63 76 72 18 18 18 18 18 25 25 19 19 25 32 26 32 26 26 26 32 32 32 32 37 37 216 Greatest Overweight (x) 1 | . . . 1 1 . . 1 . . . . . 1 . . . . . . . . . . . . . . . . . . Average Overweight (x) . | . . . . 1 . . . . . . . . . . . . . . . . . . . . . . . . . . . Largest Inventory Capacity 18 | 6 10 10 18 18 18 18 18 18 4 4 4 4 4 4 4 4 4 4 4 4 4 4 4 4 4 4 4 4 4 4 4 Average Capacity 10 | 5 9 10 17 18 18 18 18 4 4 4 4 4 4 4 4 4 4 4 4 4 4 4 4 4 4 4 4 4 4 4 4 Most Carried 18 | 4 8 8 18 17 18 18 18 18 4 4 3 3 4 4 4 4 4 4 4 4 4 4 4 4 3 3 2 4 4 4 4 Average Carried 9 | 1 5 6 15 17 17 17 17 4 3 4 3 3 3 3 4 4 3 4 4 4 4 3 3 3 2 2 2 2 3 3 3 Final Capacity 18 | 6 10 10 18 18 18 18 18 4 4 4 4 4 4 4 4 4 4 4 4 4 4 4 4 4 4 4 4 4 4 4 4 Final Carried 18 | 1 7 7 17 17 18 17 18 4 4 4 3 3 4 4 4 4 4 4 4 4 4 4 4 4 2 2 2 4 4 4 3 Class Distribution -------------------- 43% | Mutant 30% | Wizard-Sprinter 13% | Scavenger-Mutant 6% | Scavenger-Tank 4% | Wizard-Scout Dominant Class ---------------- Mutant | -10/Materials Mutant | -10/Mines Mutant | -9/Materials Mutant | -9/Mines Mutant | -9/Exiles Mutant | -8/Mines Mutant | -8/Materials Wizard-Sprinter | -7/Factory Wizard-Sprinter | -7/Lower Caves Wizard-Sprinter | -7/Lower Caves Wizard-Sprinter | -7/Data Miner Wizard-Sprinter | -6/Proximity Caves Wizard-Sprinter | -6/Factory Wizard-Sprinter | -5/Factory Wizard-Sprinter | -5/Upper Caves Wizard-Sprinter | -5/Upper Caves Wizard-Sprinter | -5/Zhirov Wizard-Sprinter | -4/Proximity Caves Wizard-Sprinter | -4/Factory Wizard-Sprinter | -4/Upper Caves Wizard-Sprinter | -4/Upper Caves Wizard-Sprinter | -4/Warlord Wizard-Sprinter | -3/Proximity Caves Wizard-Sprinter | -3/Research Wizard-Sprinter | -3/Garrison Wizard-Sprinter | -3/Research Wizard-Sprinter | -3/Garrison Wizard-Sprinter | -3/Research Wizard-Sprinter | -2/Research Wizard-Scout | -1/Access Scavenger-Mutant | -1/Command Resources | -11 -10 -10 -9 -9 -9 -8 -8 -7 -7 -7 -7 -6 -6 -5 -5 -5 -5 -4 -4 -4 -4 -4 -3 -3 -3 -3 -3 -3 -2 -1 -1 ----------- Run | Scr Mat Min Mat Min Exi Min Mat Fac Low Low Dat Pro Fac Fac Upp Upp Zhi Pro Fac Upp Upp War Pro Res Gar Res Gar Res Res Acc Com Matter Collected 5253 | 282 53 18 1033 44 . 173 1064 54 125 33 . 23 110 30 85 . . . . 28 75 87 10 105 . . . . 449 49 1323 Remotely 74 | 31 43 . . . . . . . . . . . . . . . . . . . . . . . . . . . . . . Salvage Created 5981 | 88 527 18 1844 47 . 225 1806 54 25 92 . . 129 112 37 . . . . . 34 . . 122 . 51 . . 74 70 626 Parts 319 | 2 23 5 130 . . 17 80 2 1 8 . . 1 9 1 . . . . . 1 . . 6 . . . . 3 13 17 Haulers Intercepted 14 | . 2 . 5 . . . 5 . . . . . . . . . . . . . . . . 1 . . . . 1 . . Recyclers Shooed 4 | . 1 . 1 . . . . . . . . . . . . . . . . . . . . . . . . . . . 2 Parts Field Recycled . | . . . . . . . . . . . . . . . . . . . . . . . . . . . . . . . . Retrieved Matter . | . . . . . . . . . . . . . . . . . . . . . . . . . . . . . . . . Parts Self-Destructed 17 | . . . . . . . . . 1 9 . 2 . . 1 . . . . . 1 3 . . . . . . . . . Prevented 10 | . . . . . . . . . . . . . . . . . . . . . . 10 . . . . . . . . . Kills | -11 -10 -10 -9 -9 -9 -8 -8 -7 -7 -7 -7 -6 -6 -5 -5 -5 -5 -4 -4 -4 -4 -4 -3 -3 -3 -3 -3 -3 -2 -1 -1 ------- Run | Scr Mat Min Mat Min Exi Min Mat Fac Low Low Dat Pro Fac Fac Upp Upp Zhi Pro Fac Upp Upp War Pro Res Gar Res Gar Res Res Acc Com Combat Hostiles Destroyed 131 | . 10 3 42 . . 9 34 . 1 5 . . 2 6 . . . . . . . . . 3 . 1 . . . 6 9 Melee 2 | . . . . . . . . . . . . . 2 . . . . . . . . . . . . . . . . . . Guns 75 | . 9 . 33 . . 9 24 . . . . . . . . . . . . . . . . . . . . . . . . Cannons 15 | . . . . . . . 6 . . . . . . . . . . . . . . . . . . . . . . 1 8 AOE 39 | . 1 3 9 . . . 4 . 1 5 . . . 6 . . . . . . . . . 3 . 1 . . . 5 1 Classes Destroyed 15 | 1 4 . 6 . . . 1 . . . . . . . 1 . . . . . . . . . . . . . . . 2 Worker 6 | . . . 4 . . . . . . . . . . . . . . . . . . . . . . . . . . 2 . Builder 6 | . . . 1 . . . 3 . . . . . . . . . . . . . . . . . . . . . . 2 . Hauler 14 | . 2 . 5 . . . 5 . . . . . . . . . . . . . . . . 1 . . . . 1 . . Recycler 5 | 1 . . 1 1 . . 1 1 . . . . . . . . . . . . . . . . . . . . . . . Minesweeper 2 | . . . . . . . . . . . . . . . 1 . . . . . 1 . . . . . . . . . . Operator 6 | . 1 . 4 . . . 1 . . . . . . . . . . . . . . . . . . . . . . . . Watcher 7 | . . . 2 . . . . . . . . . . 2 . . . . . . . . . 1 . . . . 1 . 1 Swarmer 47 | . 2 3 11 . . 6 6 . . 4 . . . 5 . . . . . . . . . 3 . . . . . 6 1 Grunt 52 | . 8 . 16 . . 3 19 . 1 . . . 2 . . . . . . . . . . . . 1 . . . . 2 Duelist 5 | . . . 4 . . . . . . 1 . . . . . . . . . . . . . . . . . . . . . Protector 1 | . . . 1 . . . . . . . . . . . . . . . . . . . . . . . . . . . . Sentry 17 | . . . 10 . . . 6 . . . . . . 1 . . . . . . . . . . . . . . . . . Hunter 3 | . . . . . . . 3 . . . . . . . . . . . . . . . . . . . . . . . . Programmer 3 | . . . . . . . . . . . . . . . . . . . . . . . . . . . . . . . 3 Behemoth 1 | . . . . . . . . . . . . . . . . . . . . . . . . . . . . . . . 1 M Guard 1 | . . . . . . . . . . . . . . . . . . . . . . . . . . . . . . . 1 Best Kill Streak 9 | 1 4 3 7 1 . 6 3 1 1 4 . . 2 6 1 . . . . . 1 . . 4 . 1 . . 1 9 2 Combat Bots Only 6 | . 4 3 6 . . 6 3 . 1 4 . . 2 6 . . . . . . . . . 3 . 1 . . . 6 2 Max Kills in Single Turn 6 | 1 1 3 3 1 . 1 2 1 1 3 . . 1 6 1 . . . . . 1 . . 1 . 1 . . 1 3 2 Gunslinging 1 | . . . 1 . . . . . . . . . . . . . . . . . . . . . . . . . . . . Exploded 6 | . 1 3 3 . . . 2 . 1 3 . . . 6 . . . . . . . . . 1 . 1 . . . 2 1 Melee 1 | . . . . . . . . . . . . . 1 . . . . . . . . . . . . . . . . . . Uniques/NPCs Destroyed 1 | . . . . . . . . . . . . . . . . . . . . . . . . . . . . . . . 1 MAIN.C Shell (-1/Command) Combat | -11 -10 -10 -9 -9 -9 -8 -8 -7 -7 -7 -7 -6 -6 -5 -5 -5 -5 -4 -4 -4 -4 -4 -3 -3 -3 -3 -3 -3 -2 -1 -1 -------- Run | Scr Mat Min Mat Min Exi Min Mat Fac Low Low Dat Pro Fac Fac Upp Upp Zhi Pro Fac Upp Upp War Pro Res Gar Res Gar Res Res Acc Com Damage Taken 14949 | . 589 40 1535 . . 337 2205 98 29 221 . 30 152 241 . . . 17 84 . . 81 28 678 171 84 188 284 138 440 7279 Core 2501 | . 73 . 113 . . 56 175 8 14 34 . 30 28 . . . . . 39 . . . 28 61 49 62 38 98 58 65 1472 Absorbed by Shields 907 | . . . . . . . . . . . . . . . . . . . . . . . . . 12 . . . . . 895 Reduced by Siege Mode 762 | . . . . . . . . . . . . . . . . . . . . . . . . . . . . . . . 762 Core Remaining (%) 84 | 100 . 70 . . . 57 68 . . . . 87 96 . . . . 100 . . . . 94 . . . . 76 96 . . Volleys Fired 477 | 2 36 2 138 . . 25 122 . 1 4 . . . . . . . . . . . . . 6 . . . . 8 24 109 Largest 4 | 2 2 2 2 . . 2 2 . 1 1 . . . . . . . . . . . . . 1 . . . . 1 1 4 Hottest 326 | 60 80 80 46 . . 68 68 . 30 39 . . . . . . . . . . . . . 30 . . . . 66 66 326 Shots Fired 988 | 4 71 3 255 . . 49 233 . 1 4 . . . . . . . . . . . . . 6 . . . . 8 24 330 Gun 682 | 4 71 2 241 . . 49 204 . . . . . . . . . . . . . . . . . . . . . . . 111 Cannon 268 | . . . . . . . 21 . . . . . . . . . . . . . . . . . . . . . 8 20 219 Launcher 38 | . . 1 14 . . . 8 . 1 4 . . . . . . . . . . . . . 6 . . . . . 4 . Special . | . . . . . . . . . . . . . . . . . . . . . . . . . . . . . . . . Kinetic 773 | 2 23 . 241 . . 46 213 . . . . . . . . . . . . . . . . . . . . . 8 20 220 Thermal 106 | . 7 1 . . . . . . . . . . . . . . . . . . . . . . . . . . . . 98 Explosive 38 | . . 1 14 . . . 8 . 1 4 . . . . . . . . . . . . . 6 . . . . . 4 . Electromagnetic 71 | 2 41 1 . . . 3 12 . . . . . . . . . . . . . . . . . . . . . . . 12 Robot Hit Streak 38 | 1 21 2 18 . . 7 19 . . . . . . . . . . . . . . . . 2 . . . . 3 1 38 Robot Miss Streak 8 | 2 4 1 5 . . 8 3 . 1 2 . . . . . . . . . . . . . . . . . . 1 1 3 Penetration Max 1 | . . . . . . . . . . . . . . . . . . . . . . . . . . . . . . . 1 Secondary Targets 13 | . . . 9 . . 1 3 . . . . . . . . . . . . . . . . . . . . . . . . Max Gunslinging Chain 1 | . . . 1 . . 1 1 . . . . . . . . . . . . . . . . . . . . . . . . Shots Hit Robots 743 | 1 54 2 170 . 4 23 160 2 . . . . 6 4 3 . 3 . . . 4 6 . 5 . . . . 10 3 283 Core Hits 345 | 1 25 3 91 . . 14 77 1 1 10 . . 2 7 1 . . . . . 2 . . 9 . 4 . . 3 13 81 Critical Hits 42 | . . . 1 . . 1 2 1 . . . . . . . . . . . . . . . . . . . . . . 37 Critical Kills 3 | . . . . . . 1 1 . . . . . . . . . . . . . . . . . . . . . . . 1 Critical Parts Destroyed 12 | . . . 1 . . . 1 1 . . . . . . . . . . . . . . . . . . . . . . 9 Melee Attacks 112 | . . . . . 4 . . 6 . . . . 22 19 4 . 3 . 8 . 4 7 1 16 . 4 . 8 6 . . Impact . | . . . . . . . . . . . . . . . . . . . . . . . . . . . . . . . . Slashing 92 | . . . . . . . . 6 . . . . 22 18 3 . . . 7 . 4 . 1 14 . 4 . 8 5 . . Piercing . | . . . . . . . . . . . . . . . . . . . . . . . . . . . . . . . . Sneak Attacks 23 | . . . . . 4 . . 1 . . . . . 2 2 . 3 . . . 1 6 . 3 . . . . 1 . . Combat Hostiles . | . . . . . . . . . . . . . . . . . . . . . . . . . . . . . . . . Follow-up Attacks . | . . . . . . . . . . . . . . . . . . . . . . . . . . . . . . . . Damage Inflicted 22353 | 15 731 154 3310 23 . 312 3322 173 25 431 . . 243 1209 174 . . . . . 250 . . 804 . 508 . . 466 1251 8952 Guns 7750 | 15 597 10 2236 . . 312 2312 . . . . . . . . . . . . . . . . . . . . . . . 2268 Cannons 7123 | . . . . . . . 392 . . . . . . . . . . . . . . . . . . . . . 197 113 6421 Explosions 5972 | . 118 140 1074 . . . 589 . 25 431 . . . 1011 . . . . . . . . . 675 . 508 . . . 1138 263 Melee 1436 | . . . . . . . . 173 . . . . 243 198 174 . . . . . 250 . . 129 . . . . 269 . . Ramming 72 | . 16 4 . 23 . . 29 . . . . . . . . . . . . . . . . . . . . . . . . Kinetic 11105 | . 133 . 2236 . . 289 2552 . . . . . . . . . . . . . . . . . . . . . 197 113 5585 Thermal 4654 | . 184 10 75 . . . 142 . . . . . . 1011 . . . . . . . . . . . . . . . . 3232 Explosive 4363 | . . 140 999 . . . 447 . 25 431 . . . . . . . . . . . . . 675 . 508 . . . 1138 . Electromagnetic 723 | 15 398 . . . . 23 152 . . . . . . . . . . . . . . . . . . . . . . . 135 Impact . | . . . . . . . . . . . . . . . . . . . . . . . . . . . . . . . . Slashing 1436 | . . . . . . . . 173 . . . . 243 198 174 . . . . . 250 . . 129 . . . . 269 . . Piercing . | . . . . . . . . . . . . . . . . . . . . . . . . . . . . . . . . Highest Corruption 4 | . . . . . . . . . . . . . . . . . . . . . . . . . . . . 1 . 1 4 Average Corruption 2 | . . . . . . . . . . . . . . . . . . . . . . . . . . . . 1 . 1 2 Corruption Purged 5 | . . . . . . . . . . . . . . . . . . . . . . . . . . . . . . . 5 Effects 46 | . . . . . . . . . . . . . . . . . . . . . . . . . . . . 1 . . 45 Message Errors 11 | . . . . . . . . . . . . . . . . . . . . . . . . . . . . . . . 11 Matter Fused 13 | . . . . . . . . . . . . . . . . . . . . . . . . . . . . . . . 13 Heat Flow Errors 3 | . . . . . . . . . . . . . . . . . . . . . . . . . . . . . . . 3 Energy Discharges 6 | . . . . . . . . . . . . . . . . . . . . . . . . . . . . 1 . . 5 Data Loss (minor) 4 | . . . . . . . . . . . . . . . . . . . . . . . . . . . . . . . 4 Targeting Errors 7 | . . . . . . . . . . . . . . . . . . . . . . . . . . . . . . . 7 Weapon Failures 2 | . . . . . . . . . . . . . . . . . . . . . . . . . . . . . . . 2 Overload Shots . | . . . . . . . . . . . . . . . . . . . . . . . . . . . . . . . . Overflow Damage 826 | . 7 . 62 . . . 20 . . . . . 9 161 83 . . . . . 137 . . 81 . 62 . . 19 87 98 Projectiles 102 | . . . . . . . . . . . . . . . . . . . . . . . . . . . . . . 4 98 Explosions 463 | . 7 . 62 . . . 20 . . . . . . 148 . . . . . . . . . 81 . 62 . . . 83 . Melee 261 | . . . . . . . . . . . . . 9 13 83 . . . . . 137 . . . . . . . 19 . . Knockbacks 13 | . . . . . . . . . . . . . . . . . . . . . . . . . . . . . . 1 12 Impact . | . . . . . . . . . . . . . . . . . . . . . . . . . . . . . . . . Kinetic 13 | . . . . . . . . . . . . . . . . . . . . . . . . . . . . . . 1 12 Secondary . | . . . . . . . . . . . . . . . . . . . . . . . . . . . . . . . . Self-Inflicted Damage 239 | . 50 . . . . . 57 . . 40 . . . . . . . . . . . . . 32 . . . . . 60 . Shots 8 | . 2 . . . . . 2 . . 2 . . . . . . . . . . . . . 1 . . . . . 1 . Rammed 8 | . 3 1 1 . . . 3 . . . . . . . . . . . . . . . . . . . . . . . . Targets Rammed 9 | . 3 1 1 1 . . 3 . . . . . . . . . . . . . . . . . . . . . . . . Kicked . | . . . . . . . . . . . . . . . . . . . . . . . . . . . . . . . . Crushed 1 | . . . . 1 . . . . . . . . . . . . . . . . . . . . . . . . . . . Highest Temperature 462 | 20 220 18 28 . . . 15 . . 1 . . . . . . . . 2 . . 3 . 1 3 84 62 69 72 16 462 Average Temperature 48 | 15 65 12 6 . . . 6 . . 1 . . . . . . . . 2 . . 3 . 1 3 34 24 29 17 9 77 Received Heat Transfer 2245 | . 258 . 483 . . 45 828 24 18 54 . . 54 12 . . . . 12 . . 9 9 27 9 33 39 33 9 18 271 Effects 3 | . 1 . . . . . . . . . . . . . . . . . . . . . . . . . . . . . 2 Shutdowns 2 | . . . . . . . . . . . . . . . . . . . . . . . . . . . . . . . 2 Energy Bleed 1 | . 1 . . . . . . . . . . . . . . . . . . . . . . . . . . . . . . Siege Activations 3 | . . . . . . . . . . . . . . . . . . . . . . . . . . . . . . . 3 Total Turns 209 | . . . . . . . . . . . . . . . . . . . . . . . . . . . . . . . 209 Longest Duration 80 | . . . . . . . . . . . . . . . . . . . . . . . . . . . . . . . 80 Robots Corrupted . | . . . . . . . . . . . . . . . . . . . . . . . . . . . . . . . . Combat Hostiles . | . . . . . . . . . . . . . . . . . . . . . . . . . . . . . . . . Parts Fried 2 | . . . . . . . 1 . . . . . . . . . . . . . . . . . . . . . . . 1 Impact Corruptions . | . . . . . . . . . . . . . . . . . . . . . . . . . . . . . . . . Robots Melted . | . . . . . . . . . . . . . . . . . . . . . . . . . . . . . . . . Combat Hostiles . | . . . . . . . . . . . . . . . . . . . . . . . . . . . . . . . . Parts Melted . | . . . . . . . . . . . . . . . . . . . . . . . . . . . . . . . . Heat Transferred 2787 | . 300 25 50 . . . 150 . . . . . . 600 . . . . . . . . . . . . . . . . 1662 Parts Sabotaged 1 | . . . . . . . . . . . . . . . . . . . . . . . . . . . . . . . 1 Parts Stolen . | . . . . . . . . . . . . . . . . . . . . . . . . . . . . . . . . Parts Stripped . | . . . . . . . . . . . . . . . . . . . . . . . . . . . . . . . . Power Chain Reactions 6 | . 3 . . . . . 2 . . . . . . . . . . . . . . . . . . . . . . . 1 Missiles Intercepted . | . . . . . . . . . . . . . . . . . . . . . . . . . . . . . . . . Alert | -11 -10 -10 -9 -9 -9 -8 -8 -7 -7 -7 -7 -6 -6 -5 -5 -5 -5 -4 -4 -4 -4 -4 -3 -3 -3 -3 -3 -3 -2 -1 -1 ------- Run | Scr Mat Min Mat Min Exi Min Mat Fac Low Low Dat Pro Fac Fac Upp Upp Zhi Pro Fac Upp Upp War Pro Res Gar Res Gar Res Res Acc Com Peak Influence 891 | 5 170 116 891 352 . 215 880 457 . . . . 344 871 . . . . 477 . . . . 418 176 164 193 334 455 666 419 Initial 400 | . 3 66 44 347 . . 83 400 . . . . 18 168 . . . . 28 . . . . 9 156 107 123 108 187 272 251 Average 313 | 1 58 97 515 348 . 123 527 414 . . . . 71 281 . . . . 86 . . . . 146 163 112 133 197 326 428 136 Maximum Alert Level 3 | . . . 3 1 . 1 3 2 . . . . 1 3 . . . . 2 . . . . 2 . . . 1 2 2 2 Low Security (%) 44 | 100 100 100 15 . . 82 14 . . . . . 90 52 . . . . 90 . . . . 76 100 100 100 55 2 . 71 Level 1 20 | . . . 15 100 . 17 15 12 . . . . 9 25 . . . . . . . . . 21 . . . 44 83 27 25 Level 2 26 | . . . 54 . . . 41 87 . . . . . 10 . . . . 9 . . . . 1 . . . . 14 72 2 Level 3 8 | . . . 14 . . . 28 . . . . . . 11 . . . . . . . . . . . . . . . . . Level 4 . | . . . . . . . . . . . . . . . . . . . . . . . . . . . . . . . . Level 5 . | . . . . . . . . . . . . . . . . . . . . . . . . . . . . . . . . High Security . | . . . . . . . . . . . . . . . . . . . . . . . . . . . . . . . . Max Security . | . . . . . . . . . . . . . . . . . . . . . . . . . . . . . . . . Squads Dispatched 48 | . 2 . 6 . . 1 8 1 . 1 . . 4 3 . . . . 3 . . . . 2 . . . 2 . 6 9 Investigation 18 | . 1 . 2 . . 1 5 . . . . . 2 1 . . . . 1 . . . . . . . . 2 . 1 2 Extermination 9 | . . . . . . . . . . . . . . . . . . . 1 . . . . 1 . . . . . 1 6 Reinforcement 11 | . 1 . 3 . . . 3 1 . . . . . 1 . . . . 1 . . . . . . . . . . . 1 Assault 6 | . . . 1 . . . . . . 1 . . 1 1 . . . . . . . . . 1 . . . . . 1 . Garrison 4 | . . . . . . . . . . . . . 1 . . . . . . . . . . . . . . . . 3 . Intercept . | . . . . . . . . . . . . . . . . . . . . . . . . . . . . . . . . Construction Impeded 1 | . . . . . . . 1 . . . . . . . . . . . . . . . . . . . . . . . . Haulers Reinforced 1 | . . . . . . . . . . . . . . 1 . . . . . . . . . . . . . . . . . Stealth | -11 -10 -10 -9 -9 -9 -8 -8 -7 -7 -7 -7 -6 -6 -5 -5 -5 -5 -4 -4 -4 -4 -4 -3 -3 -3 -3 -3 -3 -2 -1 -1 --------- Run | Scr Mat Min Mat Min Exi Min Mat Fac Low Low Dat Pro Fac Fac Upp Upp Zhi Pro Fac Upp Upp War Pro Res Gar Res Gar Res Res Acc Com Distress Signals 29 | . 3 . 3 . . . 5 1 . . . . . 1 . . . . 1 . . . . 3 . . . 1 3 2 6 Communications Jammed . | . . . . . . . . . . . . . . . . . . . . . . . . . . . . . . . . Distress Signals . | . . . . . . . . . . . . . . . . . . . . . . . . . . . . . . . . Times Spotted 451 | . 22 3 77 . . 8 61 10 1 14 . 4 9 14 . . . 7 10 . 4 9 1 39 5 5 23 18 10 15 82 Peak Tracking Total 37 | . 6 3 8 . . 3 7 6 1 11 . 3 3 8 . . . 7 5 . 1 7 1 20 5 3 18 11 5 7 37 Tactical Retreats 47 | . . . 1 . . . 3 1 1 2 . . 2 7 . . . 2 3 . 1 1 1 7 1 1 1 4 4 2 2 Traps | -11 -10 -10 -9 -9 -9 -8 -8 -7 -7 -7 -7 -6 -6 -5 -5 -5 -5 -4 -4 -4 -4 -4 -3 -3 -3 -3 -3 -3 -2 -1 -1 ------- Run | Scr Mat Min Mat Min Exi Min Mat Fac Low Low Dat Pro Fac Fac Upp Upp Zhi Pro Fac Upp Upp War Pro Res Gar Res Gar Res Res Acc Com Traps Triggered 14 | . 1 . . . . . 3 . . . . . . . . . . . . . . . . 1 2 1 . 3 . 1 2 Indirectly . | . . . . . . . . . . . . . . . . . . . . . . . . . . . . . . . . Trap Hack Attempts 91 | . . . 2 . . . . 29 . . . . . 19 . . . . 15 . . . . . . 4 12 10 . . . Triggered 1 | . . . . . . . . . . . . . . . . . . . . . . . . . . . 1 . . . . Disarmed 5 | . . . 1 . . . . . . . . . . 1 . . . . 1 . . . . . . . 2 . . . . Reprogrammed 64 | . . . . . . . . 23 . . . . 5 8 . . . . 9 . . . . 6 . 1 6 2 . 4 . Reused 10 | . . . . . . . . . . . . . 3 . . . . . 5 . . . . . . 1 1 . . . . Traps Extracted . | . . . . . . . . . . . . . . . . . . . . . . . . . . . . . . . . Installed 8 | . . . . . . . . . 1 . . . . . . . . . . . 7 . . . . . . . . . . Triggered 22 | . . . . . . . . . 1 2 . 1 5 . . . . . 5 1 . 5 . . . 1 1 . . . . Machines | -11 -10 -10 -9 -9 -9 -8 -8 -7 -7 -7 -7 -6 -6 -5 -5 -5 -5 -4 -4 -4 -4 -4 -3 -3 -3 -3 -3 -3 -2 -1 -1 ---------- Run | Scr Mat Min Mat Min Exi Min Mat Fac Low Low Dat Pro Fac Fac Upp Upp Zhi Pro Fac Upp Upp War Pro Res Gar Res Gar Res Res Acc Com Machines Disabled 22 | . . . 3 . . 1 2 . . 1 . . 1 7 . . . . . . . . 1 . . 2 . . . 1 3 Max in Single Turn 3 | . . . 1 . . 1 1 . . 1 . . 1 3 . . . . . . . . 1 . . 1 . . . 1 1 Garrison Access 6 | . . . . . . . 1 1 . . . . 1 . . . . . . . . . . 1 . . . 1 1 . . Machines Sabotaged . | . . . . . . . . . . . . . . . . . . . . . . . . . . . . . . . . Garrisons Compromised . | . . . . . . . . . . . . . . . . . . . . . . . . . . . . . . . . Overloaded Fab Kills . | . . . . . . . . . . . . . . . . . . . . . . . . . . . . . . . . Fab Network Shutdowns 2 | . . . . . . . . . . . . . . 1 . . . . 1 . . . . . . . . . . . . Hacking | -11 -10 -10 -9 -9 -9 -8 -8 -7 -7 -7 -7 -6 -6 -5 -5 -5 -5 -4 -4 -4 -4 -4 -3 -3 -3 -3 -3 -3 -2 -1 -1 --------- Run | Scr Mat Min Mat Min Exi Min Mat Fac Low Low Dat Pro Fac Fac Upp Upp Zhi Pro Fac Upp Upp War Pro Res Gar Res Gar Res Res Acc Com Machines Accessed 143 | . 4 . 10 . 2 1 10 9 1 1 4 . 12 16 . 2 4 . 10 . . 8 . 9 . 4 . 7 4 14 11 Terminals 76 | . 4 . 8 . . 1 7 7 . . . . 6 9 . . . . 6 . . . . 5 . 3 . 2 1 8 9 Fabricators 13 | . . . . . . . . 1 . . . . 2 3 . . . . 4 . . . . . . . . . 1 2 . Repair Stations 7 | . . . . . . . . . . . . . 2 2 . . . . . . . . . 1 . . . . . 1 1 Recycling Units 7 | . . . . . . . . . . . . . . . . . . . . . . . . . . . . 4 . 2 1 Scanalyzers 8 | . . . 2 . . . 2 . . . . . 1 1 . . . . . . . . . 1 . . . . 1 . . Garrison Access 10 | . . . . . . . 1 1 . . . . 1 1 . . . . . . . . . 2 . 1 . 1 1 1 . Total Hacks 613 | . 12 . 39 . 3 3 34 41 1 1 27 . 64 81 . 10 17 . 59 . . 9 . 41 . 30 . 18 19 66 38 Successful 500 | . 5 . 26 . 3 . 22 36 1 1 27 . 56 73 . 10 17 . 49 . . 9 . 39 . 29 . 13 10 46 28 Failed 111 | . 7 . 13 . . 3 11 5 . . . . 8 8 . . . . 9 . . . . 2 . 1 . 5 9 20 10 Catastrophic 7 | . 1 . . . . 2 . . . . . . 1 . . . . . . . . . . . . . . . 1 . 2 Database Lockouts 2 | . . . . . . . 1 . . . . . . . . . . . 1 . . . . . . . . . . . . Manual 272 | . 7 . 24 . 1 3 13 19 . . . . 29 35 . . . . 31 . . 1 1 15 . 16 . 8 11 37 21 Terminals 359 | . 12 . 25 . . 3 19 27 . . . . 31 54 . . . . 37 . . . . 27 . 29 . 12 9 47 27 Fabricators 74 | . . . . . . . . 13 . . . . 18 10 . . . . 22 . . . . . . . . . 4 7 . Repair Stations 33 | . . . . . . . . . . . . . 10 10 . . . . . . . . . 5 . . . . . 3 5 Recycling Units 16 | . . . . . . . . . . . . . . . . . . . . . . . . . . . . 4 . 6 6 Scanalyzers 42 | . . . 14 . . . 12 . . . . . 1 5 . . . . . . . . . 6 . . . . 4 . . Garrison Access 21 | . . . . . . . 3 1 . . . . 4 2 . . . . . . . . . 3 . 1 . 2 2 3 . Terminal Hacks 236 | . 3 . 5 . 3 . 6 15 1 1 27 . 19 26 . 10 17 . 19 . . 9 . 18 . 16 . 2 2 26 11 Record 34 | . . . . . 2 . . . . . 11 . . . . 9 5 . . . . 7 . . . . . . . . . Part Schematic 29 | . . . . . . . 1 3 . . 6 . 5 5 . . 4 . 1 . . . . 2 . 1 . . . 1 . Robot Schematic 10 | . . . . . . . . 2 . . 7 . . . . . . . 1 . . . . . . . . . . . . Robot Analysis 35 | . . . 3 . . . . 1 . . . . 2 3 . . 4 . 4 . . . . 1 . . . . . 17 . Prototype ID Bank 14 | . 1 . . . . . . . . . 3 . 1 . . . 4 . 1 . . . . 2 . 1 . . . . 1 Open Door 6 | . . . . . . . . . 1 1 . . . . . 1 . . . . . 2 . . . . . . . . 1 Level Access Points 6 | . . . . . . . . . . . . . 1 1 . . . . 1 . . . . 1 . . . 1 1 . . Branch Access Points 8 | . . . . . . . . 1 . . . . 1 1 . . . . 1 . . . . 1 . 1 . 1 . 1 . Emergency Access Points 3 | . . . . . . . . . . . . . 1 . . . . . . . . . . . . 2 . . . . . Machine Index 7 | . . . . . . . . 1 . . . . 1 1 . . . . 1 . . . . 1 . 1 . . . 1 . Terminal Index 1 | . . . . . . . . . . . . . . . . . . . . . . . . . . . . . . . 1 Fabricator Index 2 | . . . . . . . . . . . . . . . . . . . . . . . . 1 . . . . 1 . . Recycling Unit Index 1 | . . . . . . . . . . . . . . . . . . . . . . . . . . . . . . . 1 Garrison Index 1 | . . . . . . . . . . . . . . . . . . . . . . . . . . 1 . . . . . Alert Level 12 | . . . . . . . 1 1 . . . . 1 4 . . . . . . . . . 2 . 2 . . . . 1 Unreport Threat 7 | . . . . . . . . . . . . . 1 3 . . . . . . . . . 1 . 1 . . . 1 . Locate Traps 7 | . 2 . . . . . . . . . . . . 1 . . . . . . . . . 1 . 1 . . . 1 1 Reprogram Traps 8 | . . . . . . . . 2 . . . . 1 1 . . . . 1 . . . . 2 . . . . . 1 . Surveillance Status 1 | . . . . . . . 1 . . . . . . . . . . . . . . . . . . . . . . . . Patrol Status 1 | . . . . . . . . . . . . . . . . . . . . . . . . . . 1 . . . . . Transport Status 2 | . . . 1 . . . 1 . . . . . . . . . . . . . . . . . . . . . . . . Recall Investigation 1 | . . . . . . . . . . . . . . . . . . . 1 . . . . . . . . . . . . Recall Extermination 1 | . . . . . . . . . . . . . . . . . . . 1 . . . . . . . . . . . . Hauler Manifests 8 | . . . 1 . . . 1 . . . . . 1 2 . . . . 1 . . . . . . 2 . . . . . Registered Components 4 | . . . . . . . . . . . . . 1 1 . . . . 1 . . . . . . . . . . . 1 Registered Prototypes 6 | . . . . . . . . 1 . . . . . 1 . . . . 1 . . . . 1 . . . . . 1 1 Zone Layout 18 | . . . . . . . 1 3 . . . . 2 2 . . . . 3 . . . . 2 . 2 . . . 2 1 EX-Prototype ID Bank 1 | . . . . . 1 . . . . . . . . . . . . . . . . . . . . . . . . . . Disengage Seal 2 | . . . . . . . . . . . . . . . . . . . . . . . . . . . . . . . 2 Fabricator Hacks 49 | . . . . . . . . 9 . . . . 12 7 . . . . 13 . . . . . . . . . 2 6 . Network Status 8 | . . . . . . . . 2 . . . . 2 . . . . . 4 . . . . . . . . . . . . Load Schematic 18 | . . . . . . . . 2 . . . . 6 3 . . . . 3 . . . . . . . . . 1 3 . Build 23 | . . . . . . . . 5 . . . . 4 4 . . . . 6 . . . . . . . . . 1 3 . Repair Station Hacks 28 | . . . . . . . . . . . . . 8 10 . . . . . . . . . 5 . . . . . 3 2 Scan Component 13 | . . . . . . . . . . . . . 4 5 . . . . . . . . . 2 . . . . . 1 1 Repair 12 | . . . . . . . . . . . . . 4 5 . . . . . . . . . 2 . . . . . 1 . Refit 3 | . . . . . . . . . . . . . . . . . . . . . . . . 1 . . . . . 1 1 Recycling Unit Hacks 12 | . . . . . . . . . . . . . . . . . . . . . . . . . . . . 4 . 6 2 Process 2 | . . . . . . . . . . . . . . . . . . . . . . . . . . . . . . 2 . Report Inventory 2 | . . . . . . . . . . . . . . . . . . . . . . . . . . . . . . 2 . Retrieve Matter 2 | . . . . . . . . . . . . . . . . . . . . . . . . . . . . . . 2 . Retrieve Components 6 | . . . . . . . . . . . . . . . . . . . . . . . . . . . . 4 . . 2 Scanalyzer 34 | . . . 12 . . . 10 . . . . . . 4 . . . . . . . . . 6 . . . . 2 . . Insert Component 14 | . . . 5 . . . 4 . . . . . . 2 . . . . . . . . . 2 . . . . 1 . . Analyze 20 | . . . 7 . . . 6 . . . . . . 2 . . . . . . . . . 4 . . . . 1 . . Garrison Access Hacks 8 | . . . . . . . . 1 . . . . . . . . . . . . . . . 1 . 1 . 2 2 1 . Unlock Access 2 | . . . . . . . . . . . . . . . . . . . . . . . . 1 . 1 . . . . . Seal Access 3 | . . . . . . . . 1 . . . . . . . . . . . . . . . . . . . 1 1 . . Coupler Status 3 | . . . . . . . . . . . . . . . . . . . . . . . . . . . . 1 1 1 . Unauthorized Hacks 133 | . 2 . 9 . . . 6 11 . . . . 17 26 . . . . 17 . . . . 9 . 12 . 5 2 4 13 Terminals 93 | . 2 . 7 . . . 4 7 . . . . 6 20 . . . . 11 . . . . 7 . 12 . 5 . 2 10 Track 20 | . . . 1 . . . 1 . . . . . 1 8 . . . . 3 . . . . 2 . 3 . 1 . . . Assimilate 13 | . . . . . . . . 4 . . . . 1 2 . . . . 1 . . . . 1 . 1 . 1 . . 2 Botnet 31 | . 1 . 4 . . . 2 2 . . . . 2 4 . . . . 3 . . . . 3 . 3 . 1 . 2 4 Detonate 7 | . . . . . . . . . . . . . . 4 . . . . 1 . . . . . . 2 . . . . . Disrupt 10 | . . . . . . . . . . . . . 1 . . . . . 2 . . . . 1 . 2 . 1 . . 3 Operators 12 | . 1 . 2 . . . 1 1 . . . . 1 2 . . . . 1 . . . . . . 1 . 1 . . 1 Fabricators 21 | . . . . . . . . 4 . . . . 6 3 . . . . 6 . . . . . . . . . 2 . . Report 4 | . . . . . . . . 1 . . . . 1 . . . . . 2 . . . . . . . . . . . . Prioritize 7 | . . . . . . . . 1 . . . . 2 1 . . . . 2 . . . . . . . . . 1 . . Siphon 8 | . . . . . . . . 1 . . . . 2 2 . . . . 2 . . . . . . . . . 1 . . Haulers 2 | . . . . . . . . 1 . . . . 1 . . . . . . . . . . . . . . . . . . Repair Stations . | . . . . . . . . . . . . . . . . . . . . . . . . . . . . . . . . Recycling Units 3 | . . . . . . . . . . . . . . . . . . . . . . . . . . . . . . . 3 Monitor 1 | . . . . . . . . . . . . . . . . . . . . . . . . . . . . . . . 1 Reject 1 | . . . . . . . . . . . . . . . . . . . . . . . . . . . . . . . 1 Mask 1 | . . . . . . . . . . . . . . . . . . . . . . . . . . . . . . . 1 Scanalyzers 5 | . . . 2 . . . 1 . . . . . 1 1 . . . . . . . . . . . . . . . . . Extract 5 | . . . 2 . . . 1 . . . . . 1 1 . . . . . . . . . . . . . . . . . Garrison Access 11 | . . . . . . . 1 . . . . . 4 2 . . . . . . . . . 2 . . . . . 2 . Broadcast 4 | . . . . . . . . . . . . . 1 1 . . . . . . . . . 1 . . . . . 1 . Reprogram 6 | . . . . . . . . . . . . . 3 1 . . . . . . . . . 1 . . . . . 1 . Jam 1 | . . . . . . . 1 . . . . . . . . . . . . . . . . . . . . . . . . Data Cores Recovered . | . . . . . . . . . . . . . . . . . . . . . . . . . . . . . . . . Used . | . . . . . . . . . . . . . . . . . . . . . . . . . . . . . . . . Hacking Detections 87 | . 4 . 9 . . 1 9 7 . . . . 10 10 . . . . 7 . . . . 6 . 1 . 4 2 10 7 Full Trace Events 6 | . . . . . . 1 1 . . . . . 1 . . . . . 1 . . . . . . . . . . 1 1 Feedback Events 3 | . . . . . . . . . . . . . 1 . . . . . . . . . . . . . . . . 2 . Hackware Fried 3 | . . . . . . . . . . . . . 1 . . . . . . . . . . . . . . . . 2 . Feedback Blocked . | . . . . . . . . . . . . . . . . . . . . . . . . . . . . . . . . Robot Schematics Acquired 10 | . . . . . . . . 2 . . 7 . . . . . . . 1 . . . . . . . . . . . . Robots Built 10 | . . . . . . . . 3 . . . . 2 . . . . . 4 . . . . . . . . . . 1 . Matter 1326 | . . . . . . . . 492 . . . . 238 . . . . . 377 . . . . . . . . . . 219 . Time 363 | . . . . . . . . 174 . . . . 84 . . . . . 67 . . . . . . . . . . 38 . Total Robot Build Rating 42 | . . . . . . . . 9 . . . . 12 . . . . . 18 . . . . . . . . . . 3 . Part Schematics Acquired 56 | . . . 14 . . . 6 3 . . 6 . 7 8 . . 4 . 1 . . . . 4 . 1 . . 1 1 . Parts Built 14 | . . . . . . . . 2 . . . . 4 3 . . . . 2 . . . . . . . . . 1 2 . Matter 2448 | . . . . . . . . 109 . . . . 464 695 . . . . 397 . . . . . . . . . 213 570 . Time 631 | . . . . . . . . 36 . . . . 190 161 . . . . 68 . . . . . . . . . 76 100 . Total Part Build Rating 67 | . . . . . . . . 6 . . . . 20 14 . . . . 12 . . . . . . . . . 5 10 . Parts Repaired 12 | . . . . . . . . . . . . . 4 5 . . . . . . . . . 2 . . . . . 1 . Time 277 | . . . . . . . . . . . . . 109 104 . . . . . . . . . 44 . . . . . 20 . Parts Recycled . | . . . . . . . . . . . . . . . . . . . . . . . . . . . . . . . . Recycled Matter 344 | . . . . . . . . . . . . . . . . . . . . . . . . . . . . . . 344 . Retrieved Matter 344 | . . . . . . . . . . . . . . . . . . . . . . . . . . . . . . 344 . Retrieved Components 27 | . . . . . . . . . . . . . . . . . . . . . . . . . . . . 9 . . 18 Parts Scanalyzed 14 | . . . 5 . . . 4 . . . . . . 2 . . . . . . . . . 2 . . . . 1 . . Part Schematics Acquired 14 | . . . 5 . . . 4 . . . . . . 2 . . . . . . . . . 2 . . . . 1 . . Parts Damaged 2 | . . . 1 . . . . . . . . . . . . . . . . . . . . 1 . . . . . . . Bothacking | -11 -10 -10 -9 -9 -9 -8 -8 -7 -7 -7 -7 -6 -6 -5 -5 -5 -5 -4 -4 -4 -4 -4 -3 -3 -3 -3 -3 -3 -2 -1 -1 ------------ Run | Scr Mat Min Mat Min Exi Min Mat Fac Low Low Dat Pro Fac Fac Upp Upp Zhi Pro Fac Upp Upp War Pro Res Gar Res Gar Res Res Acc Com Used RIF Installer 1 | . . . . . . . . . . . . . . . . . . . . . . . . . . . 1 . . . . Robots Hacked 14 | . . . . . 4 . . . . . . . . 1 1 . 3 . . . . 3 . 1 . . . . 1 . . Non-combat 7 | . . . . . 3 . . . . . . . . 1 1 . . . . . . . . 1 . . . . 1 . . Combat 7 | . . . . . 1 . . . . . . . . . . . 3 . . . . 3 . . . . . . . . . Robot Hacks Applied 15 | . . . . . 4 . . . . . . . . 1 1 . 3 . . . . 3 . 2 . . . . 1 . . parse_system 11 | . . . . . 4 . . . . . . . . . . . 3 . . . . 3 . . . . . . 1 . . no_distress 3 | . . . . . . . . . . . . . . 1 1 . . . . . . . . 1 . . . . . . . find_fabricator 1 | . . . . . . . . . . . . . . . . . . . . . . . . 1 . . . . . . . Relay Couplers Released 4 | . . . . . . . . . . . . . 3 . . . . . . . . . . 1 . . . . . . . Machine Destruction 4 | . . . . . . . . . . . . . 3 . . . . . . . . . . 1 . . . . . . . Robots Rewired 3 | . . . . . . . . . . . . . . . . . . . . . . 3 . . . . . . . . . Allies Hacked . | . . . . . . . . . . . . . . . . . . . . . . . . . . . . . . . . Hacks Repelled . | . . . . . . . . . . . . . . . . . . . . . . . . . . . . . . . . Allies | -11 -10 -10 -9 -9 -9 -8 -8 -7 -7 -7 -7 -6 -6 -5 -5 -5 -5 -4 -4 -4 -4 -4 -3 -3 -3 -3 -3 -3 -2 -1 -1 -------- Run | Scr Mat Min Mat Min Exi Min Mat Fac Low Low Dat Pro Fac Fac Upp Upp Zhi Pro Fac Upp Upp War Pro Res Gar Res Gar Res Res Acc Com Total Allies 34 | . . . . . . . . 6 . . . 1 7 1 . . . . 4 . . 3 . 2 . 1 . 1 . 6 2 Largest Group 5 | . . . . . . . . 5 . . . 1 5 1 . . . . 4 . . 3 . 1 . 1 1 1 . 1 2 Highest-Rated Group 165 | . . . . . . . . 114 . . . 94 131 26 . . . . 113 . . 165 . 27 . 26 26 10 . 58 88 Highest-Rated Ally 94 | . . . . . . . . 26 . . . 94 46 26 . . . . 29 . . 60 . 27 . 26 26 10 . 58 44 Total Orders . | . . . . . . . . . . . . . . . . . . . . . . . . . . . . . . . . Ally Attacks 58 | . . . . . . . . . . . . 6 31 . . . . . 11 . . 1 . . . . . . . 9 . Total Damage 1226 | . . . . . . . . . . . . 93 568 . . . . . 153 . . 49 . . . . . . . 363 . Kills 8 | . . . . . . . . . . . . 2 2 . . . . . 4 . . . . . . . . . . . . Allies Corrupted . | . . . . . . . . . . . . . . . . . . . . . . . . . . . . . . . . Allies Melted 1 | . . . . . . . . . . . . . . . . . . . . . . . . . . . . . . . 1 Intel | -11 -10 -10 -9 -9 -9 -8 -8 -7 -7 -7 -7 -6 -6 -5 -5 -5 -5 -4 -4 -4 -4 -4 -3 -3 -3 -3 -3 -3 -2 -1 -1 ------- Run | Scr Mat Min Mat Min Exi Min Mat Fac Low Low Dat Pro Fac Fac Upp Upp Zhi Pro Fac Upp Upp War Pro Res Gar Res Gar Res Res Acc Com Robot Analysis Total 34 | . . . 3 . . . . 1 . . . . 2 3 . . 4 . 4 . . . . 1 . . . . . 16 . Derelict Logs Recovered 16 | . . 2 . 1 . . . . 2 2 . 2 . . 1 1 . 3 . 1 1 . . . . . . . . . . Drone Launches . | . . . . . . . . . . . . . . . . . . . . . . . . . . . . . . . . Drone Recoveries . | . . . . . . . . . . . . . . . . . . . . . . . . . . . . . . . . Exploration | -11 -10 -10 -9 -9 -9 -8 -8 -7 -7 -7 -7 -6 -6 -5 -5 -5 -5 -4 -4 -4 -4 -4 -3 -3 -3 -3 -3 -3 -2 -1 -1 ------------- Run | Scr Mat Min Mat Min Exi Min Mat Fac Low Low Dat Pro Fac Fac Upp Upp Zhi Pro Fac Upp Upp War Pro Res Gar Res Gar Res Res Acc Com Turns Passed 15126 | 113 680 371 3125 400 411 128 2145 455 111 98 27 286 720 640 95 68 95 62 449 68 87 181 69 419 30 95 47 139 250 436 2826 Spaces Moved 17442 | 65 350 223 1476 222 249 34 986 540 343 308 90 421 1108 1428 351 272 281 250 498 324 333 714 249 1088 78 328 146 545 775 1158 2209 Core 53 | 11 . . . . . . . . . . . . . . . . . . . . . . . . . . . . . . 42 Treads 4863 | 54 350 223 1476 222 249 34 986 16 . . . . . . . . . . . . . . . . . . . . . . 1253 Legs . | . . . . . . . . . . . . . . . . . . . . . . . . . . . . . . . . Wheels . | . . . . . . . . . . . . . . . . . . . . . . . . . . . . . . . . Hover 426 | . . . . . . . . . . . . . . . . . . . . . . . . . . . . . . . 426 Flight 12100 | . . . . . . . . 524 343 308 90 421 1108 1428 351 272 281 250 498 324 333 714 249 1088 78 328 146 545 775 1158 488 Fastest Speed 19 | 50 160 160 160 180 160 160 150 29 29 29 29 29 29 23 23 25 25 23 19 21 19 21 21 21 19 19 19 19 19 19 19 Average Speed 64 | 141 160 160 179 180 160 160 165 32 29 29 29 29 31 25 24 25 25 24 19 21 20 21 21 21 19 19 19 19 19 19 106 Slowest Speed 186 | 160 160 160 183 180 160 160 186 150 29 29 29 29 102 29 25 25 25 25 23 21 21 21 22 22 21 19 19 19 19 22 160 Overloaded Moves . | . . . . . . . . . . . . . . . . . . . . . . . . . . . . . . . . Propulsion Burnouts . | . . . . . . . . . . . . . . . . . . . . . . . . . . . . . . . . Robots Hopped 34 | . . . . . . . . 2 1 1 . . 2 3 . . . . . . . . . 14 . . 1 1 4 3 2 Cave-ins Triggered . | . . . . . . . . . . . . . . . . . . . . . . . . . . . . . . . . Exploration Rate (%) 46 | 4 66 57 93 49 63 18 69 18 64 54 70 65 27 41 61 55 62 55 16 60 53 82 43 31 34 9 39 21 22 32 50 Regions Visited 31 Branch Regions 17 Pre-discovered Areas 12 | . . 1 . 1 1 . . . 1 . 1 2 . . . 1 3 1 . . . . . . . . . . . . . Known Exits Taken 14 | . . . . . . 1 . 1 . . . 1 1 1 . . . 1 1 . 1 . 1 1 . 1 . 1 1 1 . Unknown Exits Taken 15 | 1 1 1 1 1 1 . 1 . 1 1 1 . . . 1 1 1 . . 1 . 1 . . . . . . . . . Scrap Searched 21 | . . . . 3 . . . . 4 1 . 1 . . 4 2 . . . 1 1 . 4 . . . . . . . . Spaces Dug 116 | . . . . . . . . 3 . 11 . . 11 14 . . . . 7 . . . . 19 . 22 . 8 3 14 4 Terrain Destroyed 636 | . 11 9 155 . . . 59 3 9 61 . . 11 133 . . . . 7 . . . . 49 . 31 . 8 4 66 20 Melee 56 | . . . . . . . . 3 . . . . 11 14 . . . . 7 . . . . 9 . 4 . 8 . . . Projectile 44 | . . . . . . . 4 . . . . . . . . . . . . . . . . . . . . . 4 16 20 AOE 536 | . 11 9 155 . . . 55 . 9 61 . . . 119 . . . . . . . . . 40 . 27 . . . 50 . Terrain Rammed . | . . . . . . . . . . . . . . . . . . . . . . . . . . . . . . . . Walls Destroyed . | . . . . . . . . . . . . . . . . . . . . . . . . . . . . . . . . Machines Disabled . | . . . . . . . . . . . . . . . . . . . . . . . . . . . . . . . . Actions | -11 -10 -10 -9 -9 -9 -8 -8 -7 -7 -7 -7 -6 -6 -5 -5 -5 -5 -4 -4 -4 -4 -4 -3 -3 -3 -3 -3 -3 -2 -1 -1 --------- Run | Scr Mat Min Mat Min Exi Min Mat Fac Low Low Dat Pro Fac Fac Upp Upp Zhi Pro Fac Upp Upp War Pro Res Gar Res Gar Res Res Acc Com Total 20288 | 83 403 235 1707 222 256 59 1317 811 351 310 90 584 1448 1666 354 271 303 249 834 323 343 745 260 1228 91 354 162 566 856 1342 2465 Wait 1703 | . . . . . . . 127 206 . . . 164 295 188 . . . . 309 . . 9 9 121 . 16 7 1 62 149 40 Move 17349 | 64 349 222 1475 221 248 33 985 535 340 305 89 420 1103 1421 350 271 280 249 497 323 332 713 248 1063 77 328 142 542 768 1151 2205 Hop 29 | . . . . . . . . 2 1 1 . . 2 3 . . . . . . . . . 11 . . 1 1 2 3 2 Pick Up 148 | 8 10 4 37 . 1 . 25 8 2 . . . 11 3 . . 3 . . . . 3 1 5 . 1 . 3 1 4 18 Fast Attach 65 | . . . . . . . 10 1 1 . . . 1 7 . . 6 . 2 . . 4 . 1 . . . . 5 3 24 Attach 110 | 8 3 4 24 . . 1 10 9 2 . 1 . 10 2 . . 3 . . . . 2 1 4 2 1 . 1 1 3 18 Detach 6 | 1 . 1 3 . . . . . . . . . . . . . . . . . . . . . . . . . . . 1 Swap 35 | . . . 8 . 3 . 8 3 1 . . . 1 2 . . . . 2 . . . . . . . . . . 2 5 Drop 134 | . 2 1 19 . . . 27 12 2 . . . 3 2 . . 8 . 1 . . 7 . 1 . . . . 3 3 43 Fire 477 | 2 36 2 138 . . 25 122 . 1 4 . . . . . . . . . . . . . 6 . . . . 8 24 109 Melee 112 | . . . . . 4 . . 6 . . . . 22 19 4 . 3 . 8 . 4 7 1 16 . 4 . 8 6 . . Ram . | . . . . . . . . . . . . . . . . . . . . . . . . . . . . . . . . Kick . | . . . . . . . . . . . . . . . . . . . . . . . . . . . . . . . . Crush 9 | . 3 1 1 1 . . 3 . . . . . . . . . . . . . . . . . . . . . . . . Escape Stasis 12 | . . . . . . . . . . . . . . . . . . . . . . . . . 12 . . . . . . Rewire . | . . . . . . . . . . . . . . . . . . . . . . . . . . . . . . . . Trap 99 | . . . 2 . . . . 29 1 . . . . 19 . . . . 15 . 7 . . . . 4 12 10 . . . Miscellaneous . | . . . . . . . . . . . . . . . . . . . . . . . . . . . . . . . . Route ------- -11/Scrapyard -10/Materials (discovered 3 exits: *Mat / [*Min x2]) -10/Mines (discovered 2 exits: *Mat x2) -9/Materials (discovered 4 exits: *Mat x3 / [*Min]) -9/Mines -9/Exiles -8/Mines -8/Materials -7/Factory (discovered 4 exits: Sto x2 / *Low x2) -7/Lower Caves -7/Lower Caves (discovered 2 exits: Fac / *Dat) -7/Data Miner -6/Proximity Caves -6/Factory (discovered 6 exits: *Fac x4 / Low x2) -5/Factory (discovered 6 exits: Fac x4 / *Upp x2) -5/Upper Caves -5/Upper Caves -5/Zhirov -4/Proximity Caves -4/Factory (discovered 9 exits: *Res x4 / *Upp x2 / *Ext x2 / Arm) -4/Upper Caves -4/Upper Caves -4/Warlord -3/Proximity Caves -3/Research (discovered 6 exits: Res x3 / Tes x2 / Gar) -3/Garrison -3/Research (discovered 3 exits: Tes x2 / Gar) -3/Garrison -3/Research (discovered 5 exits: *Res x3 / Tes x2) -2/Research (discovered 3 exits: *Acc x3) -1/Access -1/Command (discovered 1 exit: [Sur]) History --------- Turn | Location | Event 7 | -11/Scrapyard | Discovered new exit (range 15) 114 | -11/Scrapyard | Entered Materials 318 | -10/Materials | Build established: Mutant 380 | -10/Materials | Discovered new exit (range 13) 396 | -10/Materials | Discovered new exit (range 16) 441 | -10/Materials | Discovered new exit (range 16) 794 | -10/Materials | Entered Mines 860 | -10/Mines | Discovered new exit (range 9) 966 | -10/Mines | Learned 4 Materials zone layouts 984 | -10/Mines | Received a Rocket Launcher from a helpful Derelict 1049 | -10/Mines | Discovered new exit (range 15) 1068 | -10/Mines | Learned location of 1 exit from Materials 1092 | -10/Mines | A weapon hastily lodged in a ceiling crevice suddenly fell to the ground 1101 | -10/Mines | Learned location of Storage (-7) 1165 | -10/Mines | Entered Materials 1165 | -9/Materials | Evolved 2 slots: Propulsion x1, Utility x1 1166 | -9/Materials | Identified exit to Materials 1331 | -9/Materials | Discovered exit to Materials (range 14) 1443 | -9/Materials | Lost 3 parts (1p2w) 2322 | -9/Materials | Discovered new exit (range 15) 2592 | -9/Materials | Build established: Scavenger-Mutant 3479 | -9/Materials | Build established: Mutant 3564 | -9/Materials | Discovered exit to Materials (range 5) 3965 | -9/Materials | First assault squad dispatched 4290 | -9/Materials | Entered Mines 4410 | -9/Mines | Assembled infested the area 4681 | -9/Mines | Discovered new exit (range 5) 4690 | -9/Mines | Entered Exiles 4730 | -9/Exiles | Met 8R-AWN 4760 | -9/Exiles | Met EX-HEX 4806 | -9/Exiles | Met EX-BIN 4826 | -9/Exiles | Aligned with FarCom system 4828 | -9/Exiles | Given EX-Vault access code 4864 | -9/Exiles | Opened EX-Vault 4877 | -9/Exiles | Found Cloak of Protection 4915 | -9/Exiles | Warned to stay clear of 0b10 Research branches 4995 | -9/Exiles | Met EX-DEC 5034 | -9/Exiles | Learned location of Zion (-6) 5085 | -9/Exiles | Discovered new exit (range 10) 5101 | -9/Exiles | Left Exiles lab with Cloak of Protection 5101 | -9/Exiles | Entered Mines 5216 | -8/Mines | Discovered exit to Materials (range 8) 5229 | -8/Mines | Entered Materials 5229 | -8/Materials | Evolved 2 slots: Utility x2 5692 | -8/Materials | Lost 3 parts (1p2n) 5803 | -8/Materials | Discovered new exit (range 14) 6915 | -8/Materials | Central database locked down 7374 | -8/Materials | Entered Factory 7374 | -7/Factory | Evolved 2 slots: Utility x2 7519 | -7/Factory | Identified exit to Storage 7519 | -7/Factory | Identified exit to Lower Caves 7591 | -7/Factory | Fabricated O-24 Administrator (x1) 7649 | -7/Factory | Fabricated O-24 Administrator (x1) 7705 | -7/Factory | Build established: Wizard-Sprinter 7707 | -7/Factory | Fabricated O-24 Administrator (x1) 7747 | -7/Factory | Fabricated Imp. Propulsion Shielding? 7829 | -7/Factory | Entered Lower Caves 7848 | -7/Lower Caves | Learned location of Extension (-4) 7875 | -7/Lower Caves | Learned Factory stockpile data 7930 | -7/Lower Caves | Discovered new exit (range 14) 7940 | -7/Lower Caves | Entered another Lower Caves area 7983 | -7/Lower Caves | Attracted the attention of an 0b10 outpost 7988 | -7/Lower Caves | Identified exit to Factory 8009 | -7/Lower Caves | Spotted B-75 Beast 8033 | -7/Lower Caves | Discovered new exit (range 8) 8035 | -7/Lower Caves | Learned Factory stockpile data 8038 | -7/Lower Caves | Entered Data Miner 8039 | -7/Data Miner | Discovered new exit (range 6) 8045 | -7/Data Miner | Met Data Miner 8052 | -7/Data Miner | Learned location of Section 7 (-2) 8052 | -7/Data Miner | Acquired the access code to Warlord's prototype stash 8059 | -7/Data Miner | Received God Mode back door access code from Data Miner 8065 | -7/Data Miner | Entered Proximity Caves 8104 | -6/Proximity Caves | Escorted by Enhanced Grunt 8330 | -6/Proximity Caves | Discovered exit to Factory (range 5) 8351 | -6/Proximity Caves | Entered Factory 8351 | -6/Factory | Evolved 2 slots: Utility x1, Weapon x1 8378 | -6/Factory | Repaired Lgt. Nuclear Core 8410 | -6/Factory | Repaired Imp. VTOL Module 8442 | -6/Factory | Repaired Imp. VTOL Module 8532 | -6/Factory | Repaired Imp. VTOL Module 8603 | -6/Factory | Fabricated Mic. Fission Core (x2) 8639 | -6/Factory | Fabricated Mni. Grenade Launcher (x1) 8725 | -6/Factory | Identified exit to Lower Caves 8725 | -6/Factory | Identified exit to Factory 8746 | -6/Factory | Fabricated X-72 Disruptor? 8820 | -6/Factory | Fabricated Adv. Hacking Suite? 8944 | -6/Factory | Garrison activated, responded to threat 9051 | -6/Factory | Adv. Hacking Suite fried by hacking feedback 9071 | -6/Factory | Entered another Factory area 9071 | -5/Factory | Evolved 2 slots: Propulsion x1, Utility x1 9079 | -5/Factory | Identified exit to Upper Caves 9122 | -5/Factory | Identified exit to Factory 9307 | -5/Factory | Incoming investigation squad redirected 9390 | -5/Factory | Fabricated Imp. VTOL Module? 9438 | -5/Factory | Fabricated Exp. Cesium-ion Thruster? 9453 | -5/Factory | Fabricated Exp. Propulsion Shielding (x1) 9499 | -5/Factory | Repaired Power Sword 9511 | -5/Factory | Repaired Mni. Grenade Launcher 9532 | -5/Factory | Repaired Imp. VTOL Module 9576 | -5/Factory | Local fabrication network quarantined 9654 | -5/Factory | Repaired Imp. VTOL Module 9671 | -5/Factory | First assault squad dispatched 9684 | -5/Factory | Repaired Mic. Fission Core 9698 | -5/Factory | Incoming assault squad redirected 9711 | -5/Factory | Entered Upper Caves 9763 | -5/Upper Caves | Learned 8 Factory zone layouts 9800 | -5/Upper Caves | Discovered new exit (range 14) 9806 | -5/Upper Caves | Entered another Upper Caves area 9820 | -5/Upper Caves | Learned location of 1 exit from Factory 9822 | -5/Upper Caves | Encountered a Warlord checkpoint 9861 | -5/Upper Caves | Learned Factory trap positions 9861 | -5/Upper Caves | Learned Extension stockpile data 9861 | -5/Upper Caves | Learned Extension security intel 9861 | -5/Upper Caves | Learned Extension terminal intel 9861 | -5/Upper Caves | Learned Armory garrison access intel 9867 | -5/Upper Caves | Discovered new exit (range 10) 9874 | -5/Upper Caves | Entered Zhirov 9874 | -5/Zhirov | Discovered new exit (range 3) 9879 | -5/Zhirov | Met Zhirov 9895 | -5/Zhirov | Zhirov requested help retrieving the SGEMP Prototype 9898 | -5/Zhirov | Learned location of Quarantine (-2) 9898 | -5/Zhirov | Learned location of Testing (-3) 9898 | -5/Zhirov | Learned location of Command (-1) 9904 | -5/Zhirov | Found Alien Artifact 9904 | -5/Zhirov | Identified Integrated Reactor 9904 | -5/Zhirov | Installed Integrated Reactor, increased core energy generation (+10) 9932 | -5/Zhirov | Found Alien Artifact 9969 | -5/Zhirov | Entered Proximity Caves 9989 | -4/Proximity Caves | Learned Research emergency access door positions 10022 | -4/Proximity Caves | Learned location of 1 exit from Research 10029 | -4/Proximity Caves | Discovered exit to Factory (range 8) 10031 | -4/Proximity Caves | Entered Factory 10031 | -4/Factory | Evolved 2 slots: Propulsion x1, Utility x1 10032 | -4/Factory | Identified exit to Research 10033 | -4/Factory | Identified exit to Extension 10034 | -4/Factory | Loaded intel: 96 trap records 10079 | -4/Factory | Fabricated Exp. Cesium-ion Thruster (x1) 10107 | -4/Factory | Fabricated Adv. System Shield (x1) 10137 | -4/Factory | Fabricated O-24 Administrator (x1) 10183 | -4/Factory | Incoming investigation squad redirected 10336 | -4/Factory | Fabricated G-50 Soldier (x3) 10341 | -4/Factory | Central database locked down 10345 | -4/Factory | Identified exit to Upper Caves 10345 | -4/Factory | Identified exit to Armory 10436 | -4/Factory | Local fabrication network quarantined 10480 | -4/Factory | Entered Upper Caves 10533 | -4/Upper Caves | Discovered new exit (range 12) 10548 | -4/Upper Caves | Entered another Upper Caves area 10597 | -4/Upper Caves | Identified exit to Warlord 10635 | -4/Upper Caves | Attracted the attention of an 0b10 checkpoint 10635 | -4/Upper Caves | Entered Warlord 10658 | -4/Warlord | Visited the Vortex Lab 10672 | -4/Warlord | Warlord's base attacked by MAIN.C 10719 | -4/Warlord | Met Warlord 10728 | -4/Warlord | Opened Warlord's prototype stash 10732 | -4/Warlord | Found Prototype Device 10732 | -4/Warlord | Identified Exp. Phase Shifter 10740 | -4/Warlord | Found Prototype Processor 10742 | -4/Warlord | Identified Exp. Target Analyzer 10793 | -4/Warlord | Opened side exit 10803 | -4/Warlord | Discovered new exit (range 11) 10816 | -4/Warlord | Entered Proximity Caves 10872 | -3/Proximity Caves | Discovered exit to Research (range 5) 10876 | -3/Proximity Caves | Acquired the password to a Derelict Tinkerer's latest research 10885 | -3/Proximity Caves | Entered Research 10885 | -3/Research | Evolved 2 slots: Power x1, Utility x1 10886 | -3/Research | Identified exit to Testing 10980 | -3/Research | Repaired Mni. Grenade Launcher 11010 | -3/Research | Repaired Mic. Fission Core 11147 | -3/Research | Identified exit to Research 11226 | -3/Research | Spotted B-86 Titan 11290 | -3/Research | Spotted B-86 Titan 11304 | -3/Research | Identified exit to Garrison 11304 | -3/Research | Entered Garrison 11322 | -3/Garrison | Spotted B-86 Titan 11323 | -3/Garrison | Triggered checkpoint 11332 | -3/Garrison | Discovered new exit (range 10) 11334 | -3/Garrison | Entered Research 11355 | -3/Research | Lost 5 parts (1p3u1w) 11421 | -3/Research | Identified exit to Garrison 11429 | -3/Research | Entered Garrison 11429 | -3/Garrison | Accompanied by 1 ally 11464 | -3/Garrison | Spotted B-86 Titan 11466 | -3/Garrison | Triggered checkpoint 11466 | -3/Garrison | Triggered checkpoint 11471 | -3/Garrison | Discovered new exit (range 12) 11475 | -3/Garrison | Installed Relay Interface Framework 11476 | -3/Garrison | Entered Research 11615 | -3/Research | Entered another Research area 11615 | -2/Research | Warlord forces began assault on 0b10 11615 | -2/Research | Evolved 2 slots: Utility x1, Weapon x1 11644 | -2/Research | Identified exit to Access 11725 | -2/Research | Research machine network offline 11728 | -2/Research | Fabricated Exp. Propulsion Shielding? 11865 | -2/Research | Entered Access 11865 | -1/Access | Evolved 2 slots: Propulsion x1, Utility x1 11905 | -1/Access | Adv. System Shield fried by hacking feedback 11905 | -1/Access | Mak. System Shield fried by hacking feedback 11906 | -1/Access | Garrison activated, responded to threat 11955 | -1/Access | Lost 3 parts (3u) 11973 | -1/Access | Spotted B-99 Colossus 12025 | -1/Access | Fabricated Exp. Terrain Scanner (x1) 12076 | -1/Access | Fabricated Exp. Terrain Scan Processor (x1) 12156 | -1/Access | Identified exit to Command 12160 | -1/Access | First assault squad dispatched 12187 | -1/Access | Incoming assault squad redirected 12241 | -1/Access | Fabricated O-24 Administrator? 12261 | -1/Access | Repaired Lgt. Antimatter Reactor? 12301 | -1/Access | Entered Command 12321 | -1/Command | Disengaged cave seal 12321 | -1/Command | Derelicts emerged from the dark tunnel 12321 | -1/Command | Welcomed Warlord to Command 12368 | -1/Command | Spotted B-99 Colossus 12387 | -1/Command | Build established: Wizard-Scout 12427 | -1/Command | Disengaged cave seal 12427 | -1/Command | Derelicts emerged from the dark tunnel 12471 | -1/Command | Destroyed B-99 Colossus 12612 | -1/Command | Discovered new exit (range 26) 13191 | -1/Command | Build established: Scavenger-Tank 13491 | -1/Command | Build established: Scavenger-Mutant 13565 | -1/Command | Incoming investigation squad redirected 14524 | -1/Command | Warlord commented on Warlord statues 14537 | -1/Command | Spotted M Guard 14566 | -1/Command | Spotted Combat Programmer 14567 | -1/Command | Spotted Combat Programmer 14590 | -1/Command | Destroyed M Guard 14592 | -1/Command | All MAIN.C guards destroyed 14837 | -1/Command | Build established: Scavenger-Tank 14912 | -1/Command | Met MAIN.C 14971 | -1/Command | 0b10 Conduit disabled 14985 | -1/Command | Destroyed MAIN.C Shell 14988 | -1/Command | MAIN.C activated Command garrisons 15104 | -1/Command | Identified Transdimensional Reconstructor 15104 | -1/Command | Failed to warp due to unstable space 15113 | -1/Command | Core integrity fell below 50% 15125 | -1/Command | Core integrity fell below 20% 15127 | -1/Command | Destroyed by G-73 Enforcer with Phase Gun Last Messages --------------- System(83%). 15110_ Penetrated by Slug. 15111_ Acquired 100 matter. 15112_ Adv. Targeting Computer destroyed. 15113_ >> MONITOR: Recycling Unit C001 accepting Sml. Battery(80%). 15114_ Slug penetrates Reinforced Barrier. 15115_ Penetrated by Slug. 15115_ Knocked back. 15116_ >> MONITOR: Recycling Unit C001 accepting Adv. Heat Sink(64%). 15119_ >> MONITOR: Recycling Unit C001 accepting Sml. Battery(33%). 15123_ C-30 ARC bursts open, deploying its payload. 15123_ S-43 Plague unfolds itself. 15126_ Adv. Target Analyzer blown off. 15126_ E-15 Imp destroyed. 15126_ Penetrated by Slug. 15126_ Slug penetrates E-15 Imp. 15126_ E-15 Imp destroyed. 15126_ K-01 Serf collects debris. 15126_ C-30 ARC bursts open, deploying its payload. 15126_ S-43 Plague unfolds itself. Map ----- +----------------------------------------------------+ | ??????????????????#?####?##??########?### # | | ??????????????????### ? #?#?###?###?##### ### | | ??????????????????##? ???################ ### | | ???????????????????##? ?################ ### | | ???????????????????#?? #?###?########### ### | | ???????????????????#?? ?###?###################### | | ????????????????????# ?########?################# | | ????????????????????? ? ##?#?##################### | | ????????????????????? ?##???#################### | | ????????????????????#d #######?################## | | ??????????????????????? #?####?################### | | ????????????????????? #?######################## | | ????????????????????# h??######################## | | ????????????????????#l #?#?####?################# | | ????????????????????# #??#??##?################# | | ##################??#l #?#???#################### | | #??# %=###??##################### | | M #??# =p#??##??################### | | g #??# d #?##??#################### | | ############## #??# #???#################### " | | ?????????????# #??# ##### ###############"" | | ?????????????# g ##?# # # #### ## ###########" | | ?????????????# T#?# # ### ## #####" | | ?????????????#+;;#### W### W ### W # #####"" | | ?????????????# ss g s% h p +g | | ?????????????# @ s s " | | ?????????????# pse e e s / | | ?????????????# ke% d / | | ?????????????# es b l b +b | | ?????????????# # b # W # # W ##;W #####""# | | ?????????????###### # # ### ### #### | | ??????????????????### ##### ## # ########### | | ????????????????????# #??## ############ | | ????????????????????# #??################### ! | | ????????????????????# #??#?################# | | ????????????????????# g#??###################] | | ????????????????????# #??################### | | ????????????????????#x #????################# | | ????????????????????# #???###################### | | ????????????????????# #??############## """"" | | ????????????????????# #??############## ""T"" | | ????????????????????? #??############## | | ?????????????????????dx #??############## | | ????????????????????? ????############# | | ?????????????????????????????############ | | ????????????????????????????############# / | | ????????????????????????????############# | | ????????????????????????????################+##### | | ?????????????????????????????############# #### | | ?????????????????????????????############# #### | +----------------------------------------------------+ Best States ------------- Heat Dissipation 145 Energy Generation 55 Energy Capacity 1600 Matter Stores 590 Matter Capacity 600 Sight Range 16 Terrain Scan Range 30 Terrain Scan Density 1010 Jamming Range 8 Cloak Strength 5 Power Amplification 20 Armor Coverage 2400 Resistance: KI 25 Propulsion Shielding 90 Phase Shifting 15 Evasion (%) 70 Targeting Accuracy 8 Melee Accuracy 6 Target Analysis 8 Recoil Reduction 6 Kinecelleration 30 Offensive Hacking 74 Defensive Hacking 73 Item Schematics ----------------- Hacking Suite | -9/Materials | Scanalyzed Mni. Grenade Launcher | -9/Materials | Scanalyzed Imp. EM Shotgun | -9/Materials | Scanalyzed Ripper | -9/Materials | Scanalyzed Hcp. Matter Pod | -9/Materials | Extracted Lgt. EM Pulse Cannon | -9/Materials | Extracted Maneuvering Thrusters | -9/Materials | Scanalyzed Welding Torch | -9/Materials | Extracted Imp. Targeting Computer | -9/Materials | Extracted EM Shotgun | -9/Materials | Extracted Rocket Launcher | -9/Materials | Extracted Imp. Terrain Scanner | -9/Materials | Extracted Hammer | -9/Materials | Extracted Structural Scanner | -9/Materials | Extracted Imp. VTOL Module | -8/Materials | Scanalyzed System Shield | -8/Materials | Scanalyzed Airjet | -8/Materials | Extracted Imp. Propulsion Shielding | -8/Materials | Hacked Power Amplifier | -8/Materials | Scanalyzed Transmission Jammer | -8/Materials | Scanalyzed Adv. Terrain Scan Processor | -7/Factory | Hacked Mic. Fission Core | -7/Factory | Hacked Imp. Transmission Jammer | -7/Factory | Hacked Combat Drone Bay | -7/Data Miner | Free Lgt. Regenerative Plating | -7/Data Miner | Free Cmb. Gravmag System | -7/Data Miner | Free Exp. Cesium-ion Thruster | -7/Data Miner | Free Exp. Sensor Array | -7/Data Miner | Free Cloaking Device | -7/Data Miner | Free Reaction Control System | -6/Factory | Hacked Adv. Hacking Suite | -6/Factory | Hacked Adv. System Shield | -6/Factory | Hacked Adv. Armor Integrity Analyzer | -6/Factory | Hacked Mni. Drone Bay | -6/Factory | Hacked Imp. Cooling System | -6/Factory | Extracted Imp. Medium Treads | -6/Factory | Extracted Exp. Propulsion Shielding | -5/Factory | Hacked Exp. Terrain Scanner | -5/Factory | Hacked Exp. Terrain Scan Processor | -5/Factory | Hacked Exp. Thermal Shield | -5/Factory | Hacked Cld. Particle Cannon | -5/Factory | Scanalyzed Imp. Maneuvering Thrusters | -5/Factory | Scanalyzed Plasma Rifle | -5/Factory | Extracted Arm. Heavy Treads | -5/Factory | Hacked Assault Drone Bay | -5/Zhirov | Free Exp. Heat Sink | -5/Zhirov | Free Exp. Optical Array | -5/Zhirov | Free Imp. Arc Thrower | -5/Zhirov | Free Enh. Nova Cannon | -4/Factory | Hacked Thermal Barrier | -3/Research | Hacked Exp. Energy Well | -3/Research | Scanalyzed Exp. Phase Shifter | -3/Research | Scanalyzed Gamma Bomb Array | -3/Research | Hacked Adv. Heavy Siege Treads | -3/Research | Hacked Imp. Matter Compressor | -2/Research | Scanalyzed Adv. Reaction Control System | -1/Access | Hacked Robot Schematics ------------------ O-24 Administrator | -7/Factory | Hacked G-47 Trooper | -7/Factory | Hacked S-27 Virus | -7/Data Miner | Free G-50 Soldier | -7/Data Miner | Free G-67 Veteran | -7/Data Miner | Free X-72 Disruptor | -7/Data Miner | Free H-66 Slayer | -7/Data Miner | Free I-36 Angel | -7/Data Miner | Free I-47 Archangel | -7/Data Miner | Free L-61 Swordsman | -4/Factory | Hacked Fabricated ------------ O-24 Administrator | x1 | -7/Factory O-24 Administrator | x1 | -7/Factory O-24 Administrator | x1 | -7/Factory Imp. Propulsion Shielding | x2 | -7/Factory Mic. Fission Core | x2 | -6/Factory Mni. Grenade Launcher | x1 | -6/Factory X-72 Disruptor | x2 | -6/Factory Adv. Hacking Suite | x1 | -6/Factory Imp. VTOL Module | x1 | -5/Factory Exp. Cesium-ion Thruster | x1 | -5/Factory Exp. Propulsion Shielding | x1 | -5/Factory Exp. Cesium-ion Thruster | x1 | -4/Factory Adv. System Shield | x1 | -4/Factory O-24 Administrator | x1 | -4/Factory G-50 Soldier | x3 | -4/Factory | Preloaded Exp. Propulsion Shielding | x1 | -2/Research Exp. Terrain Scanner | x1 | -1/Access Exp. Terrain Scan Processor | x1 | -1/Access O-24 Administrator | x1 | -1/Access Alien Tech Used ----------------- Integrated Reactor Transdimensional Reconstructor Achievements -------------- None Challenges ------------ None Game ------ Seed AngularMetafieldCloak Manual? 0 Play Time 03:11:46 Cumulative 640.5 hours Start 2021.11.09 @ 23:48:49 End 2021.11.10 @ 03:04:50 Sessions 1 Manual Loads 0 Difficulty Rogue Special Mode None Game No. 644 Rogue 603 Adventurer 41 Explorer 0 Win Type - Total 31 Types 23/0/6/1/0/0/0/1/0 Lore% 91 Gallery% 93 Achievement% 79 Wizard Run 0 Options --------- ASCII 0 Keyboard 0 Movement Mouse Keybinds 0 Fullscreen 1 Font 18/Terminus Map View 76x50 Tactical HUD 1 Map Filters NONE Filters NONE Steam 1 RUN: 12d84426-a50e-440f-8f24-30b928132b2c